fUSD/lending_fUSD_20241018
["ID","MTS","AMOUNT","RATE_DAILY","PERIOD"]
[340436575,1729242154677,-3000.0,0.000304,2]
[340436576,1729242154703,-500.0,0.00031107,2]
[340436577,1729242154728,-500.0,0.00031107,2]
[340436578,1729242154753,-500.0,0.00031107,2]
[340436579,1729242154781,-500.0,0.00031107,2]
[340436580,1729242154809,-500.0,0.00031107,2]
[340436581,1729242154837,-500.0,0.00031107,2]
[340436582,1729242154864,-500.0,0.00031107,2]
[340436583,1729242154892,-500.0,0.00031107,2]
[340436584,1729242154918,-500.0,0.00031107,2]
[340436585,1729242154944,-174.84345899,0.00031162,2]
[340436586,1729242154972,-1000.0,0.00032422,2]
[340436587,1729242154998,-200.0,0.00032533,2]
[340436588,1729242155024,-250.0,0.00032593,2]
[340436589,1729242155051,-241.96,0.00032757,120]
[340436590,1729242155080,-493.16468521,0.00033031,120]
[340436591,1729242155107,-500.0,0.00033067,7]
[340436592,1729242155133,-3000.0,0.000332,2]
[340436593,1729242155165,-500.0,0.00033232,2]
[340436594,1729242155192,-1000.0,0.00033796,2]
[340436595,1729242155218,-300.0,0.00034101,2]
[340436596,1729242167457,-300.0,0.00035471,2]
[340436597,1729242167482,-250.0,0.00035633,2]
[340436598,1729242167510,-3000.0,0.000359,2]
[340436599,1729242167700,-180.0,0.00036206,120]
[340436600,1729242167725,-1000.0,0.00037551,2]
[340436601,1729242167748,-576.22,0.00038349,3]
[340436602,1729242167771,-2000.0,0.00038359,2]
[340436603,1729242167794,-192.06,0.0003859,3]
[340436604,1729242167817,-664.7518558,0.000386,2]
[340436605,1729242289095,6430.4596,0.0002239,2]
[340436606,1729242301388,18569.5404,0.000303,7]
[340436607,1729242307285,200.0,0.00014416,2]
[340436608,1729242338700,500.0,0.00010999,2]
[340436609,1729242338984,500.0,0.00010999,2]
[340436610,1729242339282,500.0,0.00010999,2]
[340436611,1729242339563,500.0,0.00010999,2]
[340436612,1729242339851,500.0,0.00010999,2]
[340436613,1729242340139,500.0,0.00010999,2]
[340436614,1729242340415,500.0,0.00010999,2]
[340436615,1729242340696,500.0,0.00010999,2]
[340436616,1729242340967,500.0,0.00010999,2]
[340436617,1729242341260,500.0,0.00010999,2]
[340436618,1729242341599,540.20198828,0.00010999,2]
[340436619,1729242403337,794.06,0.00010999,2]
[340436620,1729242403588,794.06,0.00010999,2]
[340436621,1729242403864,794.06,0.00010999,2]
[340436622,1729242404143,794.06,0.00010999,2]
[340436623,1729242404439,794.06,0.00010999,2]
[340436624,1729242404904,794.06,0.00010999,2]
[340436625,1729242405231,794.06,0.00010999,2]
[340436626,1729242405608,794.06,0.00010999,2]
[340436627,1729242405888,794.06,0.00010999,2]
[340436628,1729242406174,794.06,0.00010999,2]
[340436629,1729242406587,794.06,0.00010999,2]
[340436630,1729242406862,794.06,0.00010999,2]
[340436631,1729242407146,794.06,0.00010999,2]
[340436632,1729242407671,794.06,0.00010999,2]
[340436633,1729242408003,794.06,0.00010999,2]
[340436634,1729242408333,794.06,0.00010999,2]
[340436635,1729242408640,794.06,0.00010999,2]
[340436636,1729242408939,794.06,0.00010999,2]
[340436637,1729242409229,794.06,0.00010999,2]
[340436638,1729242409525,794.06,0.00010999,2]
[340436639,1729242409806,794.06,0.00010999,2]
[340436640,1729242410148,794.06,0.00010999,2]
[340436641,1729242410447,794.06,0.00010999,2]
[340436642,1729242410746,794.27669442,0.00010999,2]
[340436643,1729242448143,-3357.60012975,0.000303,7]
[340436646,1729242632128,-5853.03008476,0.000303,7]
[340436647,1729242632185,-4741.27912961,0.000303,7]
[340436648,1729242632197,-2261.75,0.000303,7]
[340436649,1729242632298,-1505.24235457,0.000303,7]
[340436650,1729242632356,-1283.39985363,0.000303,7]
[340436651,1729242632367,-2759.93037825,0.000303,7]
[340436652,1729242632417,-716.18874666,0.000303,7]
[340436655,1729242638278,-49518.84872277,0.000303,7]
[340436656,1729242638287,-1938.875,0.000385,120]
[340436657,1729242638297,-2335.2481442,0.000386,2]
[340436658,1729242638306,-2000.0,0.00038998,2]
[340436659,1729242638316,-2000.0,0.00038999,2]
[340436660,1729242638325,-500.0,0.00039299,2]
[340436661,1729242638335,-164.34,0.00039357,2]
[340436662,1729242638458,-2000.0,0.00039398,2]
[340436663,1729242638469,-2000.0,0.00039399,2]
[340436664,1729242638478,-2000.0,0.00039399,2]
[340436665,1729242638488,-2000.0,0.00039399,2]
[340436666,1729242638497,-2000.0,0.00039399,2]
[340436667,1729242638506,-2000.0,0.00039999,2]
[340436668,1729242638515,-2000.0,0.00039999,2]
[340436669,1729242638524,-1240.1741558,0.0004,120]
[340436670,1729242638533,-158.54000442,0.0004,120]
[340436671,1729242638542,-2000.0,0.00040189,2]
[340436672,1729242638552,-153.09,0.00040628,2]
[340436673,1729242638562,-165.71,0.00041123,30]
[340436674,1729242638573,-250.0,0.00041176,2]
[340436675,1729242638582,-2295.31,0.00041177,10]
[340436676,1729242638592,-1912.76,0.00041177,10]
[340436677,1729242638601,-1593.97,0.00041177,10]
[340436678,1729242638611,-2751.0,0.00041187,120]
[340436679,1729242638621,-1000.0,0.00041221,120]
[340436680,1729242638630,-157.0,0.00041313,2]
[340436681,1729242638640,-250.0,0.00041313,2]
[340436682,1729242638649,-1000.0,0.00041316,2]
[340436683,1729242638659,-3000.0,0.000414,2]
[340436684,1729242638668,-4000.0,0.00041511,28]
[340436685,1729242638677,-200.0,0.00041612,2]
[340436686,1729242638687,-153.09,0.00042503,2]
[340436687,1729242638696,-300.0,0.0004251,2]
[340436688,1729242638705,-500.0,0.00042806,7]
[340436689,1729242638715,-500.0,0.00043078,2]
[340436690,1729242638724,-300.0,0.0004388,2]
[340436691,1729242638733,-241.96,0.0004399,120]
[340436692,1729242638742,-3000.0,0.000441,2]
[340436693,1729242638752,-153.09,0.00044378,120]
[340436694,1729242638761,-150.0,0.00044517,90]
[340436696,1729242638770,-181.31042371,0.00044517,90]
[340436698,1729242638779,-204.3265004,0.00044517,90]
[340436699,1729242638788,-2258.48425131,0.00044517,90]
[340436700,1729242638798,-295.74,0.00044761,6]
[340436701,1729242638807,-2683.7968,0.00045597,2]
[340436702,1729242638816,-500.0,0.00045696,120]
[340436703,1729242638826,-150.0,0.00045697,120]
[340436704,1729242638836,-1714.15756127,0.00045697,120]
[340436705,1729242638846,-150.0,0.00045697,120]
[340436706,1729242638855,-150.0,0.00045697,120]
[340436707,1729242638865,-8753.63019641,0.00045697,120]
[340436708,1729242638875,-9883.88311412,0.00045697,120]
[340436709,1729242638884,-150.0,0.00045697,120]
[340436710,1729242638894,-118123.69143151,0.00045697,120]
[340436711,1729242638904,-153.09,0.00046252,120]
[340436712,1729242638914,-1000.0,0.00046481,2]
[340436713,1729242638924,-3000.0,0.000468,2]
[340436714,1729242638933,-150.0,0.00047115,30]
[340436715,1729242638944,-680.71990876,0.00047115,30]
[340436716,1729242638954,-251.65,0.00047246,79]
[340436717,1729242638963,-233.49,0.00047601,120]
[340436718,1729242638972,-184.27,0.00048,120]
[340436719,1729242638982,-153.09,0.00048127,120]
[340436720,1729242638991,-249.0,0.00049,120]
[340436721,1729242639003,-1000.0,0.00049599,120]
[340436722,1729242639012,-3000.0,0.000496,2]
[340436723,1729242639021,-212.12415269,0.000499,28]
[340436724,1729242639031,-34000.0,0.0005,50]
[340436725,1729242639041,-2080.0,0.0005,15]
[340436726,1729242639051,-153.09,0.00050001,120]
[340436727,1729242639060,-233.49,0.00050185,120]
[340436728,1729242639070,-180.0,0.00051282,120]
[340436729,1729242639080,-1000.0,0.00051646,120]
[340436730,1729242639090,-153.09,0.00051876,120]
[340436731,1729242639099,-2218.0,0.000523,2]
[340436732,1729242639108,-233.49,0.00052769,120]
[340436733,1729242639118,-722.0,0.00053253,7]
[340436734,1729242639126,-164.34,0.00053695,2]
[340436735,1729242639136,-153.09,0.0005375,120]
[340436736,1729242639145,-20849.0559857,0.00054785,12]
[340436737,1729242639154,-751.0,0.00054795,120]
[340436738,1729242639163,-770.0,0.00054795,120]
[340436739,1729242639173,-529.0,0.00054795,120]
[340436740,1729242639182,-893.0,0.00054795,120]
[340436741,1729242639191,-781.0,0.00054795,120]
[340436742,1729242639199,-2218.8215661,0.000551,90]
[340436743,1729242639209,-241.96,0.00055223,120]
[340436744,1729242639218,-233.49,0.00055353,120]
[340436745,1729242639228,-153.09,0.00055625,120]
[340436746,1729242639237,-1000.0,0.0005681,120]
[340436747,1729242639246,-2152.0819637,0.00057377,120]
[340436748,1729242639255,-153.09,0.000575,120]
[340436749,1729242639264,-233.49,0.00057937,120]
[340436750,1729242639274,-401.46142347,0.00058862,15]
[340436751,1729242639284,-153.09,0.00059374,120]
[340436752,1729242639293,-20849.0559857,0.0005999,14]
[340436753,1729242639302,-500.0,0.00059999,120]
[340436754,1729242639311,-512.45298173,0.00059999,120]
[340436755,1729242639321,-521.69288426,0.00059999,120]
[340436756,1729242639330,-521.47943399,0.00059999,120]
[340436757,1729242639340,-522.98887157,0.00059999,120]
[340436758,1729242639350,-229.97467291,0.00059999,120]
[340436759,1729242639359,-932.72,0.00059999,120]
[340436760,1729242639368,-500.0,0.00059999,120]
[340436761,1729242639378,-500.0,0.00059999,120]
[340436762,1729242639387,-1088.51,0.00059999,120]
[340436763,1729242639396,-630.18,0.00059999,120]
[340436764,1729242639405,-50000.0,0.0006,60]
[340436765,1729242639414,-20849.0559857,0.00060182,14]
[340436766,1729242639423,-30453.31,0.00060192,120]
[340436767,1729242639431,-233.49,0.00060521,120]
[340436768,1729242639441,-153.09,0.00061249,120]
[340436769,1729242639450,-1663.0,0.000614,73]
[340436770,1729242639460,-1000.0,0.00061975,120]
[340436771,1729242639469,-405.19345943,0.00063045,2]
[340436772,1729242639478,-233.49,0.00063105,120]
[340436773,1729242639487,-405.19345943,0.00063409,2]
[340436774,1729242639497,-405.19345943,0.00063761,2]
[340436775,1729242639506,-20000.0,0.00064,120]
[340436776,1729242639516,-2743.279999,0.00064,120]
[340436777,1729242639525,-3201.619999,0.00064,120]
[340436778,1729242639536,-405.19345943,0.00064239,2]
[340436779,1729242639545,-405.19345943,0.00064541,2]
[340436780,1729242639555,-2000.0,0.00064675,14]
[340436781,1729242639567,-272.119,0.0006468,60]
[340436782,1729242639576,-405.19345944,0.00064842,2]
[340436783,1729242639585,-20849.0559857,0.0006499,15]
[340436784,1729242639594,-500.0,0.00065,120]
[340436785,1729242639603,-233.49,0.00065689,120]
[340436786,1729242639612,-1531.49802317,0.0006588,2]
[340436787,1729242639621,-5271.32221561,0.00065899,37]
[340436788,1729242639630,-214.65479573,0.00065899,49]
[340436789,1729242639639,-20849.0559857,0.0006598,15]
[340436790,1729242639647,-27595.45231,0.0006598,13]
[340436791,1729242639656,-177.66837528,0.0006598,7]
[340436792,1729242639666,-500.0,0.00065989,120]
[340436793,1729242639676,-500.0,0.00065989,120]
[340436794,1729242639684,-500.0,0.00065989,120]
[340436795,1729242639694,-1000.0,0.00065989,120]
[340436796,1729242639704,-500.0,0.00065989,120]
[340436797,1729242639713,-630.18,0.00065989,120]
[340436798,1729242639722,-83396.223943,0.0006599,15]
[340436799,1729242639731,-54544.24762218,0.0006599,13]
[340436800,1729242639780,-1567.4506,0.0006599,13]
[340436805,1729242640110,-2731.96726652,0.000384,2]
[340436806,1729242640120,-450.0,0.00041176,2]
[340436807,1729242640130,-1328.3,0.00044507,10]
[340436808,1729242640139,-26674.65870782,0.0006599,13]
[340436809,1729242640148,-500.0,0.00065999,120]
[340436810,1729242640158,-1000.0,0.00065999,120]
[340436811,1729242640167,-3123.86884209,0.00065999,120]
[340436812,1729242640176,-1088.51,0.00065999,120]
[340436813,1729242640186,-11213513.23199757,0.00066,60]
[340436814,1729242640200,-736576.41808551,0.00066,60]
[340436822,1729242643213,-327.05241108,0.00041511,28]
[340436832,1729242662023,202.1413173,0.00019725,2]
[340436833,1729242662050,97.8586827,0.00019725,2]
[340436834,1729242662832,420.0,0.00021484,2]
[340436835,1729242663622,467.0,0.00023401,2]
[340436836,1729242679065,150.0,0.000119,2]
[340436837,1729242680722,156.25,0.00010959,2]
[340436838,1729242908514,1150.0,0.00021971,2]
[340436839,1729242911496,812.0,0.00021971,2]
[340436840,1729242917978,449.0,0.00021971,2]
[340436841,1729242921003,560.0,0.00021971,2]
[340436842,1729242926667,8048.337,0.00021971,2]
[340436843,1729242930206,1054.032,0.00021971,2]
[340436844,1729242935534,209.895,0.00021971,2]
[340436845,1729242936377,937.791,0.00021971,2]
[340436846,1729242941104,555.0,0.00021971,2]
[340436847,1729242946538,1908.0,0.00021971,2]
[340436848,1729242948582,374.0,0.000185,2]
[340436849,1729242949295,337.0,0.000185,2]
[340436850,1729242949643,3356.0,0.00021971,2]
[340436851,1729242959287,809.0,0.00021971,2]
[340436853,1729243205933,3148.8363173,0.00021971,2]
[340436855,1729243333327,550.0,0.0001,2]
[340436856,1729243334406,600.0,0.00012,2]
[340436857,1729243335475,650.0,0.00014,2]
[340436858,1729243339410,605.35,0.00025,120]
[340436859,1729243351476,190.65,0.00010959,2]
[340436860,1729243351634,190.65,0.00017592,2]
[340436861,1729243408443,1276.0,0.000185,2]
[340436862,1729243508082,21542.7,0.00011,2]
[340436863,1729243548100,-277.12871969,0.000109,2]
[340436864,1729243548120,-1096.24285047,0.000109,2]
[340436865,1729243548144,-384.12,0.00010959,2]
[340436866,1729243548169,-62848.43766534,0.00011,2]
[340436867,1729243549094,-44323.16865255,0.00011,2]
[340436868,1729243597104,-2876.75050096,0.000109,2]
[340436869,1729243626163,-6151.57375615,0.0001088,2]
[340436870,1729243630101,-36008.25821036,0.0001088,2]
[340436871,1729243652090,-110831.84469188,0.0001088,2]
[340436872,1729243652131,-268382.86288835,0.0001088,2]
[340436879,1729243707252,-214.65479573,0.000108,2]
[340436880,1729243707280,-577003.10111712,0.0001088,2]
[340436881,1729243707310,-3870.1970081,0.000109,2]
[340436882,1729243707336,-1907.6503,0.000109,2]
[340436883,1729243707361,-730.82856698,0.000109,2]
[340436884,1729243707386,-184.7524798,0.000109,2]
[340436885,1729243707413,-559.22544094,0.00010999,2]
[340436886,1729243707438,-150.0,0.00010999,2]
[340436887,1729243707466,-4415379.59029133,0.00011,2]
[340436894,1729243781462,-151.0,0.0003,120]
[340436895,1729243781497,-2000.0,0.000301,30]
[340436896,1729243781533,-1456.0,0.000342,30]
[340436897,1729243781569,-151.0,0.00035014,120]
[340436898,1729243781604,-1456.14940162,0.000384,30]
[340436899,1729243781640,-151.0,0.00040027,120]
[340436900,1729243781676,-150.0,0.00044,57]
[340436901,1729243781708,-151.0,0.00045041,120]
[340436902,1729243781740,-626.50198864,0.00045696,120]
[340436903,1729243781772,-499.29940082,0.00045696,120]
[340436904,1729243781806,-500.0,0.00045696,120]
[340436905,1729243781838,-382.01262352,0.00045696,120]
[340436906,1729243781872,-150.0,0.00045696,120]
[340436908,1729243781915,450.0,0.00040027,120]
[340436909,1729243782196,1000.0,0.00040027,120]
[340436910,1729243782379,450.0,0.00044,57]
[340436911,1729243782476,450.0,0.00040027,120]
[340436912,1729243782825,450.0,0.00045041,120]
[340436913,1729243782909,450.0,0.00044,57]
[340436914,1729243782948,1000.0,0.00044,57]
[340436915,1729243783498,450.0,0.00045696,120]
[340436916,1729243783539,1000.0,0.00045041,120]
[340436917,1729243783578,450.0,0.00045041,120]
[340436918,1729243783622,1000.0,0.00044,57]
[340436933,1729243832339,-320.66312088,0.000109,2]
[340436934,1729243832350,-166.55592378,0.000109,2]
[340436935,1729243832359,-8532.77701143,0.00011,2]
[340436936,1729243832370,-10209.75,0.00011,2]
[340436937,1729243832382,-8971.18423279,0.00011,2]
[340436938,1729243832400,-397.7418011,0.00011,2]
[340436939,1729243832412,-1029.07753147,0.00011,2]
[340436940,1729243832425,-297.19785182,0.00011,2]
[340436941,1729243832436,-1752.99828896,0.00011,2]
[340436942,1729243832448,-1965.56307591,0.00011,2]
[340436943,1729243832459,-486.743278,0.00011,2]
[340436944,1729243832470,-722.16573347,0.00011,2]
[340436945,1729243832525,-3416.88,0.00011,2]
[340436946,1729243832587,-3639.07319539,0.00011,2]
[340437024,1729243838400,-629.96,0.00010999,2]
[340437026,1729243838409,-629.96,0.00010999,2]
[340437028,1729243838418,-629.96,0.00010999,2]
[340437029,1729243838428,-629.96,0.00010999,2]
[340437030,1729243838437,-629.96,0.00010999,2]
[340437031,1729243838446,-629.96,0.00010999,2]
[340437032,1729243838455,-629.96,0.00010999,2]
[340437033,1729243838465,-629.96,0.00010999,2]
[340437034,1729243838475,-629.96,0.00010999,2]
[340437035,1729243838484,-629.96,0.00010999,2]
[340437036,1729243838495,-629.96,0.00010999,2]
[340437037,1729243838505,-629.96,0.00010999,2]
[340437038,1729243838515,-629.96,0.00010999,2]
[340437039,1729243838525,-69524.78857033,0.00011,2]
[340437040,1729243838537,-467.6403731,0.00011,2]
[340437041,1729243838596,-629.96,0.00010999,2]
[340437042,1729243838606,-29190.37463353,0.00011,2]
[340437043,1729243838739,-534822.17724259,0.00011,2]
[340437044,1729243838789,-128077.85285922,0.00011,2]
[340437063,1729243840328,-629.96,0.00010999,2]
[340437064,1729243840337,-629.96,0.00010999,2]
[340437065,1729243840346,-629.96,0.00010999,2]
[340437067,1729243840355,-629.96,0.00010999,2]
[340437068,1729243840365,-629.96,0.00010999,2]
[340437070,1729243840374,-3132.1,0.00011,2]
[340437078,1729243840443,-1893.51437775,0.00011,2]
[340437080,1729243840455,-1126.74999975,0.00011,2]
[340437083,1729243840466,-136327.95099552,0.00011,2]
[340437089,1729243840524,-71382.64477393,0.00011,2]
[340437098,1729243843402,-629.96,0.00010999,2]
[340437099,1729243843412,-378.58,0.00010999,2]
[340437100,1729243843423,-251.38,0.00010999,2]
[340437101,1729243843433,-496.58313166,0.00010999,2]
[340437102,1729243843444,-133.37686834,0.00010999,2]
[340437103,1729243843455,-629.96,0.00010999,2]
[340437104,1729243843464,-630.02458873,0.00010999,2]
[340437105,1729243843474,-4145.40430759,0.00011,2]
[340437106,1729243843584,-87866.09406929,0.00011,2]
[340437107,1729243843607,-6039.59868571,0.00011,2]
[340437110,1729243846399,-184.75247979,0.000109,2]
[340437111,1729243846408,-219453.64594508,0.00011,2]
[340437112,1729243846683,-12194.85823695,0.00011,2]
[340437113,1729243889139,-893.86,0.00010999,2]
[340437114,1729243889161,-893.86,0.00010999,2]
[340437115,1729243889184,-893.86,0.00010999,2]
[340437116,1729243889208,-893.86,0.00010999,2]
[340437117,1729243889231,-893.86,0.00010999,2]
[340437118,1729243889254,-893.86,0.00010999,2]
[340437119,1729243889281,-893.86,0.00010999,2]
[340437120,1729243889302,-893.86,0.00010999,2]
[340437121,1729243889327,-893.86,0.00010999,2]
[340437122,1729243889352,-893.86,0.00010999,2]
[340437123,1729243889376,-893.86,0.00010999,2]
[340437124,1729243889398,-893.86,0.00010999,2]
[340437125,1729243889421,-893.86,0.00010999,2]
[340437126,1729243889444,-893.86,0.00010999,2]
[340437127,1729243889469,-893.86,0.00010999,2]
[340437128,1729243889491,-893.86,0.00010999,2]
[340437129,1729243889516,-893.86,0.00010999,2]
[340437130,1729243889538,-893.86,0.00010999,2]
[340437131,1729243889561,-893.86,0.00010999,2]
[340437132,1729243889582,-893.86,0.00010999,2]
[340437133,1729243889605,-893.86,0.00010999,2]
[340437134,1729243889629,-893.86,0.00010999,2]
[340437135,1729243889651,-500.0,0.00010999,2]
[340437136,1729243889673,-500.0,0.00010999,2]
[340437137,1729243889695,-649.32239274,0.00010999,2]
[340437138,1729243889718,-500.0,0.00010999,2]
[340437139,1729243889741,-500.0,0.00010999,2]
[340437140,1729243889765,-500.0,0.00010999,2]
[340437141,1729243889787,-500.0,0.00010999,2]
[340437142,1729243889811,-500.0,0.00010999,2]
[340437143,1729243889835,-500.0,0.00010999,2]
[340437144,1729243889858,-500.0,0.00010999,2]
[340437145,1729243889880,-430.91257085,0.00010999,2]
[340437146,1729243889907,-365.59215969,0.00010999,2]
[340437147,1729243889932,-500.0,0.00010999,2]
[340437148,1729243889957,-500.0,0.00010999,2]
[340437149,1729243889979,-500.0,0.00010999,2]
[340437150,1729243890003,-500.0,0.00010999,2]
[340437151,1729243890025,-500.0,0.00010999,2]
[340437152,1729243890049,-500.0,0.00010999,2]
[340437153,1729243890074,-500.0,0.00010999,2]
[340437154,1729243890098,-300.0,0.00010999,2]
[340437155,1729243890121,-150.0,0.00010999,2]
[340437156,1729243890146,-500.0,0.00010999,2]
[340437157,1729243890169,-500.0,0.00010999,2]
[340437158,1729243890196,-500.0,0.00010999,2]
[340437159,1729243890219,-500.0,0.00010999,2]
[340437160,1729243890242,-500.0,0.00010999,2]
[340437161,1729243890272,-500.0,0.00010999,2]
[340437162,1729243890296,-500.0,0.00010999,2]
[340437163,1729243890320,-280.92697601,0.00010999,2]
[340437164,1729243890433,-500.0,0.00010999,2]
[340437165,1729243890460,-466158.32590071,0.00011,2]
[340437166,1729243945364,-212.72831032,0.000109,2]
[340437167,1729243945389,-161.33933335,0.000109,2]
[340437168,1729243945412,-596.48634648,0.000109,2]
[340437169,1729243945435,-300.0,0.000109,2]
[340437170,1729243945457,-214.23,0.00010959,2]
[340437171,1729243945481,-230.48,0.00010959,2]
[340437172,1729243945505,-500.0,0.00010973,2]
[340437173,1729243945529,-893.86,0.00010999,2]
[340437174,1729243945552,-893.98889848,0.00010999,2]
[340437175,1729243945576,-500.0,0.00010999,2]
[340437176,1729243945598,-500.0,0.00010999,2]
[340437177,1729243945622,-500.0,0.00010999,2]
[340437178,1729243945645,-500.0,0.00010999,2]
[340437179,1729243945668,-500.0,0.00010999,2]
[340437180,1729243945692,-500.0,0.00010999,2]
[340437181,1729243945715,-500.0,0.00010999,2]
[340437182,1729243945738,-532.61426741,0.00010999,2]
[340437183,1729243945762,-500.0,0.00010999,2]
[340437184,1729243945788,-500.0,0.00010999,2]
[340437185,1729243945811,-500.0,0.00010999,2]
[340437186,1729243945836,-140464.27284396,0.00011,2]
[340437357,1729244138038,-28186.79511724,0.00033687,30]
[340437358,1729244138074,-2893.05713535,0.00033687,120]
[340437359,1729244138109,-1077.38709736,0.00033687,30]
[340437360,1729244138144,-336.34910537,0.00033687,3]
[340437361,1729244138181,-248.12288642,0.00033687,30]
[340437362,1729244142012,861.0,0.00033687,120]
[340437363,1729244309283,1000.0,0.00033831,30]
[340437364,1729244309891,1000.0,0.00033831,30]
[340437365,1729244310259,1000.0,0.00033831,30]
[340437366,1729244310627,1000.0,0.00033831,30]
[340437367,1729244311071,1000.0,0.00033831,30]
[340437368,1729244311574,1000.0,0.00033831,30]
[340437369,1729244311992,1000.0,0.00033831,30]
[340437370,1729244312382,1000.0,0.00033831,30]
[340437371,1729244312875,1000.0,0.00033831,30]
[340437372,1729244317354,1000.0,0.00033831,30]
[340437373,1729244317796,1000.0,0.00033831,30]
[340437374,1729244318217,1000.0,0.00033831,30]
[340437375,1729244318684,1000.0,0.00033831,30]
[340437376,1729244321132,1000.0,0.00033831,30]
[340437377,1729244321491,1000.0,0.00033831,30]
[340437378,1729244321937,1000.0,0.00033831,30]
[340437379,1729244322917,1000.0,0.00033831,30]
[340437380,1729244323447,1000.0,0.00033831,30]
[340437381,1729244323928,1792.948989,0.00033831,30]
[340437382,1729244330587,-5800.0,0.00013,4]
[340437383,1729244330612,-384301.253655,0.000138,3]
[340437384,1729244330635,-109898.746345,0.000139,3]
[340437385,1729244350267,-509.92,0.000184,7]
[340437386,1729244350293,-607.1,0.00022137,30]
[340437387,1729244350315,-424.93,0.000234,14]
[340437388,1729244350338,-607.1,0.00024721,30]
[340437389,1729244350360,-367.70096063,0.000253,10]
[340437390,1729244350385,-150.0,0.000271,60]
[340437391,1729244350514,-607.1,0.00027305,30]
[340437392,1729244350539,-1106.92,0.00027397,10]
[340437393,1729244350562,-922.43,0.00027397,10]
[340437394,1729244350586,-768.7,0.00027397,10]
[340437395,1729244350612,-150.0,0.000274,7]
[340437396,1729244350638,-150.0,0.000281,60]
[340437397,1729244350661,-173.120584,0.000291,60]
[340437398,1729244350684,-607.1,0.00029889,30]
[340437399,1729244350708,-151.0,0.0003,120]
[340437400,1729244350731,-150.0,0.000313,15]
[340437401,1729244350754,-172.36,0.000317,14]
[340437402,1729244350776,-500.0,0.00032,30]
[340437403,1729244350799,-680.01106964,0.00032,30]
[340437404,1729244350821,-500.0,0.00032,30]
[340437405,1729244350844,-916.68247759,0.00032,30]
[340437406,1729244350867,-500.0,0.00032,30]
[340437407,1729244350893,-500.0,0.00032,30]
[340437408,1729244350918,-500.0,0.00032,30]
[340437409,1729244350941,-862.1016372,0.00032,30]
[340437410,1729244350964,-500.0,0.00032,30]
[340437411,1729244350988,-500.0,0.00032,30]
[340437412,1729244351011,-500.0,0.00032,30]
[340437413,1729244351033,-500.0,0.00032,30]
[340437414,1729244351057,-517.02779115,0.00032,30]
[340437415,1729244351081,-500.0,0.00032,30]
[340437416,1729244351104,-704.2737538,0.00032,30]
[340437417,1729244351129,-500.0,0.00032,30]
[340437418,1729244351151,-810.53567071,0.00032,30]
[340437419,1729244351174,-1000.0,0.00032,30]
[340437420,1729244351196,-1000.0,0.00032,30]
[340437421,1729244351218,-509.99109762,0.00032,30]
[340437422,1729244351241,-1000.0,0.00032,30]
[340437423,1729244351264,-1100.0,0.00032,30]